fUSD/lending_fUSD_20250806
["ID","MTS","AMOUNT","RATE_DAILY","PERIOD"]
[377585314,1754448692823,-3061.86,0.00036164,14]
[377585315,1754448692832,-400.0,0.00036164,14]
[377585316,1754448692842,-1869.25,0.00036164,14]
[377585317,1754448692852,-572.41,0.00036164,14]
[377585318,1754448692863,-1241.1,0.00036164,14]
[377585319,1754448692874,-1742.73,0.00036164,14]
[377585320,1754448692883,-400.0,0.00036164,14]
[377585321,1754448692893,-589.98,0.00036164,14]
[377585322,1754448692903,-1056.28,0.00036164,14]
[377585323,1754448692913,-1789.45,0.00036164,14]
[377585324,1754448692923,-400.0,0.00036164,14]
[377585325,1754448692934,-400.0,0.00036164,14]
[377585326,1754448692944,-3264.35,0.00036164,14]
[377585327,1754448692955,-400.0,0.00036164,14]
[377585328,1754448692964,-400.0,0.00036164,14]
[377585329,1754448692977,-1465.39,0.00036164,14]
[377585330,1754448692987,-400.0,0.00036164,14]
[377585331,1754448693007,-719.58,0.00036164,14]
[377585332,1754448693024,-1335.74,0.00036164,14]
[377585333,1754448693034,-400.0,0.00036164,14]
[377585334,1754448693045,-1301.62,0.00036164,14]
[377585335,1754448693055,-400.0,0.00036164,14]
[377585336,1754448693065,-400.0,0.00036164,14]
[377585337,1754448693075,-493.26,0.00036164,14]
[377585338,1754448693085,-1906.92,0.00036164,14]
[377585339,1754448693094,-2206.71,0.00036164,14]
[377585340,1754448693105,-400.0,0.00036164,14]
[377585341,1754448693115,-400.0,0.00036164,14]
[377585342,1754448693125,-451.74,0.00036164,14]
[377585343,1754448693135,-400.0,0.00036164,14]
[377585344,1754448693146,-400.0,0.00036164,14]
[377585345,1754448693155,-400.0,0.00036164,14]
[377585346,1754448693165,-400.0,0.00036164,14]
[377585347,1754448693175,-400.0,0.00036164,14]
[377585348,1754448693185,-986.68,0.00036164,14]
[377585349,1754448693195,-400.0,0.00036164,14]
[377585350,1754448693205,-1276.43,0.00036164,14]
[377585351,1754448693215,-922.85,0.00036164,14]
[377585352,1754448693224,-947.42,0.00036164,14]
[377585353,1754448693234,-2195.08,0.00036164,14]
[377585354,1754448693244,-1464.57,0.00036164,14]
[377585355,1754448693254,-400.0,0.00036164,14]
[377585356,1754448693264,-400.0,0.00036164,14]
[377585357,1754448693276,-400.0,0.00036164,14]
[377585358,1754448693664,-802.3,0.00036164,14]
[377585359,1754448693673,-2197.84,0.00036164,14]
[377585360,1754448693683,-804.15,0.00036164,14]
[377585361,1754448693692,-400.0,0.00036164,14]
[377585362,1754448693702,-400.0,0.00036164,14]
[377585363,1754448693711,-820.58,0.00036164,14]
[377585364,1754448693721,-684.16,0.00036164,14]
[377585365,1754448693731,-400.0,0.00036164,14]
[377585366,1754448693740,-611.45,0.00036164,14]
[377585367,1754448693750,-744.31,0.00036164,14]
[377585368,1754448693758,-400.0,0.00036164,14]
[377585369,1754448693769,-1536.69,0.00036164,14]
[377585370,1754448693779,-2158.92,0.00036164,14]
[377585371,1754448693788,-400.0,0.00036164,14]
[377585372,1754448693799,-400.0,0.00036164,14]
[377585373,1754448693809,-400.0,0.00036164,14]
[377585374,1754448693820,-461.52,0.00036164,14]
[377585375,1754448693830,-400.0,0.00036164,14]
[377585376,1754448693840,-400.0,0.00036164,14]
[377585377,1754448693850,-400.0,0.00036164,14]
[377585378,1754448693860,-545.58,0.00036164,14]
[377585379,1754448693873,-850.08,0.00036164,14]
[377585380,1754448693883,-1521.24,0.00036164,14]
[377585381,1754448693892,-400.0,0.00036164,14]
[377585382,1754448693904,-300.0,0.00036164,14]
[377585383,1754448693914,-521.67,0.00036164,14]
[377585384,1754448693924,-400.0,0.00036164,14]
[377585385,1754448693933,-2094.08,0.00036164,14]
[377585386,1754448693944,-1086.81,0.00036164,14]
[377585387,1754448693954,-400.0,0.00036164,14]
[377585388,1754448693964,-1148.89,0.00036164,14]
[377585389,1754448693974,-400.0,0.00036164,14]
[377585390,1754448693984,-400.0,0.00036164,14]
[377585391,1754448693994,-400.0,0.00036164,14]
[377585392,1754448694004,-647.61,0.00036164,14]
[377585393,1754448694015,-1804.32,0.00036164,14]
[377585394,1754448694025,-400.0,0.00036164,14]
[377585395,1754448694035,-688.12,0.00036164,14]
[377585396,1754448694045,-575.0,0.00036164,14]
[377585397,1754448694055,-460.78,0.00036164,14]
[377585398,1754448694066,-1509.88,0.00036164,14]
[377585399,1754448694075,-400.0,0.00036164,14]
[377585400,1754448694085,-400.0,0.00036164,14]
[377585401,1754448694095,-400.0,0.00036164,14]
[377585402,1754448694106,-400.0,0.00036164,14]
[377585403,1754448694118,-1622.09,0.00036164,14]
[377585404,1754448694129,-1836.14,0.00036164,14]
[377585405,1754448694138,-400.0,0.00036164,14]
[377585406,1754448694148,-400.0,0.00036164,14]
[377585407,1754448694158,-400.0,0.00036164,14]
[377585408,1754448694167,-400.0,0.00036164,14]
[377585409,1754448694177,-774.95,0.00036164,14]
[377585410,1754448694187,-449.13,0.00036164,14]
[377585411,1754448694196,-400.0,0.00036164,14]
[377585412,1754448694206,-2961.28,0.00036164,14]
[377585413,1754448694217,-1032.0,0.00036164,14]
[377585414,1754448694226,-878.8,0.00036164,14]
[377585415,1754448694236,-400.0,0.00036164,14]
[377585416,1754448694246,-1829.37,0.00036164,14]
[377585417,1754448694255,-2880.34,0.00036164,14]
[377585418,1754448694265,-1462.8,0.00036164,14]
[377585419,1754448694276,-3418.23,0.00036164,14]
[377585420,1754448694286,-1158.06,0.00036164,14]
[377585421,1754448694297,-400.0,0.00036164,14]
[377585422,1754448694306,-400.0,0.00036164,14]
[377585423,1754448694316,-1563.04,0.00036164,14]
[377585424,1754448694326,-400.0,0.00036164,14]
[377585425,1754448694335,-650.36,0.00036164,14]
[377585426,1754448694345,-400.0,0.00036164,14]
[377585427,1754448694354,-1923.25,0.00036164,14]
[377585428,1754448694363,-400.0,0.00036164,14]
[377585429,1754448694373,-2020.14,0.00036164,14]
[377585430,1754448694382,-2285.89,0.00036164,14]
[377585431,1754448694391,-3412.85,0.00036164,14]
[377585432,1754448694400,-400.0,0.00036164,14]
[377585433,1754448694410,-444.68,0.00036164,14]
[377585434,1754448694419,-400.0,0.00036164,14]
[377585435,1754448694428,-400.0,0.00036164,14]
[377585436,1754448694438,-400.0,0.00036164,14]
[377585437,1754448694447,-400.0,0.00036164,14]
[377585438,1754448694457,-1704.34,0.00036164,14]
[377585439,1754448694468,-981.32,0.00036164,14]
[377585440,1754448694478,-400.0,0.00036164,14]
[377585441,1754448694488,-422.51,0.00036164,14]
[377585442,1754448694497,-1217.8,0.00036164,14]
[377585443,1754448694507,-400.0,0.00036164,14]
[377585444,1754448694516,-400.0,0.00036164,14]
[377585445,1754448694526,-719.56,0.00036164,14]
[377585446,1754448694536,-426.16,0.00036164,14]
[377585447,1754448694545,-400.0,0.00036164,14]
[377585448,1754448694555,-2284.92,0.00036164,14]
[377585449,1754448694565,-2049.87,0.00036164,14]
[377585450,1754448694575,-400.0,0.00036164,14]
[377585451,1754448694584,-400.0,0.00036164,14]
[377585452,1754448694593,-400.0,0.00036164,14]
[377585453,1754448694603,-400.0,0.00036164,14]
[377585454,1754448694612,-426.91767596,0.00036164,14]
[377585455,1754448694621,-400.0,0.00036164,14]
[377585456,1754448694631,-1324.35,0.00036164,14]
[377585457,1754448694640,-400.0,0.00036164,14]
[377585458,1754448694649,-400.0,0.00036164,14]
[377585459,1754448694659,-400.0,0.00036164,14]
[377585460,1754448694668,-536.81,0.00036164,14]
[377585461,1754448694677,-400.0,0.00036164,14]
[377585462,1754448694686,-1978.73,0.00036164,14]
[377585463,1754448694696,-2066.75,0.00036164,14]
[377585464,1754448694706,-400.0,0.00036164,14]
[377585465,1754448694715,-400.0,0.00036164,14]
[377585466,1754448694724,-400.0,0.00036164,14]
[377585467,1754448694733,-2370.33,0.00036164,14]
[377585468,1754448694742,-400.0,0.00036164,14]
[377585469,1754448694751,-400.0,0.00036164,14]
[377585470,1754448694761,-618.59,0.00036164,14]
[377585471,1754448694770,-1380.46,0.00036164,14]
[377585472,1754448694780,-400.0,0.00036164,14]
[377585473,1754448694789,-1918.49,0.00036164,14]
[377585474,1754448694799,-681.38,0.00036164,14]
[377585475,1754448694809,-400.0,0.00036164,14]
[377585476,1754448694818,-400.0,0.00036164,14]
[377585477,1754448694827,-400.0,0.00036164,14]
[377585478,1754448694837,-400.0,0.00036164,14]
[377585479,1754448694846,-898.87,0.00036164,14]
[377585480,1754448694860,-1159.52,0.00036164,14]
[377585481,1754448694870,-325.86063753,0.00036164,14]
[377585482,1754448694880,-589.89,0.00036164,14]
[377585483,1754448694889,-2526.57,0.00036164,14]
[377585484,1754448694901,-400.0,0.00036164,14]
[377585485,1754448694911,-400.0,0.00036164,14]
[377585486,1754448694920,-403.12211256,0.00036164,14]
[377585487,1754448694929,-481.3,0.00036164,14]
[377585488,1754448694941,-400.0,0.00036164,14]
[377585489,1754448694951,-400.0,0.00036164,14]
[377585490,1754448694961,-1943.34,0.00036164,14]
[377585491,1754448694970,-771.1,0.00036164,14]
[377585492,1754448694980,-738.49,0.00036164,14]
[377585493,1754448694989,-1101.66,0.00036164,14]
[377585494,1754448694998,-2119.77,0.00036164,14]
[377585495,1754448695008,-400.0,0.00036164,14]
[377585496,1754448695017,-400.0,0.00036164,14]
[377585497,1754448695028,-151.0,0.00036164,7]
[377585498,1754448695037,-400.0,0.00036164,14]
[377585499,1754448695047,-151.0,0.00036164,7]
[377585500,1754448695056,-151.0,0.00036164,7]
[377585501,1754448695066,-400.0,0.00036164,14]
[377585502,1754448695076,-151.0,0.00036164,7]
[377585503,1754448695086,-2486.07,0.00036164,14]
[377585504,1754448695095,-400.0,0.00036164,14]
[377585505,1754448695105,-400.0,0.00036164,14]
[377585506,1754448695116,-400.0,0.00036164,14]
[377585507,1754448695126,-1301.09,0.00036164,14]
[377585508,1754448695135,-825.89,0.00036164,14]
[377585509,1754448695145,-400.0,0.00036164,14]
[377585510,1754448695154,-400.0,0.00036164,14]
[377585511,1754448695163,-400.0,0.00036164,14]
[377585512,1754448695173,-400.0,0.00036164,14]
[377585513,1754448695182,-400.0,0.00036164,14]
[377585514,1754448695192,-520.74792201,0.00036164,14]
[377585515,1754448695201,-400.0,0.00036164,14]
[377585516,1754448695210,-681.33,0.00036164,14]
[377585517,1754448695219,-400.0,0.00036164,14]
[377585518,1754448695229,-424.16,0.00036164,14]
[377585519,1754448695238,-400.0,0.00036164,14]
[377585520,1754448695248,-1940.75,0.00036164,14]
[377585521,1754448695256,-2332.46,0.00036164,14]
[377585522,1754448695266,-400.0,0.00036164,14]
[377585523,1754448695275,-400.0,0.00036164,14]
[377585524,1754448695285,-400.0,0.00036164,14]
[377585525,1754448695295,-400.0,0.00036164,14]
[377585526,1754448695304,-400.0,0.00036164,14]
[377585527,1754448695313,-2008.42,0.00036164,14]
[377585528,1754448695323,-1594.04,0.00036164,14]
[377585529,1754448695332,-400.0,0.00036164,14]
[377585530,1754448695341,-400.0,0.00036164,14]
[377585531,1754448695350,-1556.67,0.00036164,14]
[377585532,1754448695360,-400.0,0.00036164,14]
[377585533,1754448695370,-400.0,0.00036164,14]
[377585534,1754448695379,-803.41,0.00036164,14]
[377585535,1754448695388,-400.0,0.00036164,14]
[377585536,1754448695397,-1049.45,0.00036164,14]
[377585537,1754448695406,-2287.11,0.00036164,14]
[377585538,1754448695415,-400.0,0.00036164,14]
[377585539,1754448695424,-2094.9,0.00036164,14]
[377585540,1754448695434,-3089.8,0.00036164,14]
[377585541,1754448695444,-400.0,0.00036164,14]
[377585542,1754448695453,-2284.3,0.00036164,14]
[377585543,1754448695462,-1760.6,0.00036164,14]
[377585544,1754448695471,-590.2,0.00036164,14]
[377585545,1754448695481,-904.68,0.00036164,14]
[377585546,1754448695490,-412.44888065,0.00036164,14]
[377585547,1754448695500,-400.0,0.00036164,14]
[377585548,1754448695509,-524.39,0.00036164,14]
[377585549,1754448695519,-400.0,0.00036164,14]
[377585550,1754448695528,-538.64,0.00036164,14]
[377585551,1754448695538,-400.0,0.00036164,14]
[377585552,1754448695547,-400.0,0.00036164,14]
[377585553,1754448695556,-473.05,0.00036164,14]
[377585554,1754448695566,-477.4,0.00036164,14]
[377585555,1754448695575,-681.47,0.00036164,14]
[377585556,1754448695584,-400.0,0.00036164,14]
[377585557,1754448695594,-992.23,0.00036164,14]
[377585558,1754448695604,-1562.45,0.00036164,14]
[377585559,1754448695613,-400.0,0.00036164,14]
[377585560,1754448695622,-400.0,0.00036164,14]
[377585561,1754448695632,-1343.91,0.00036164,14]
[377585562,1754448695642,-151.0,0.00036164,7]
[377585563,1754448695651,-1123.2,0.00036164,14]
[377585564,1754448695660,-400.0,0.00036164,14]
[377585565,1754448695670,-402.35,0.00036164,14]
[377585566,1754448695679,-400.0,0.00036164,14]
[377585567,1754448695688,-400.0,0.00036164,14]
[377585568,1754448695698,-400.0,0.00036164,14]
[377585569,1754448695707,-659.8,0.00036164,14]
[377585570,1754448695716,-400.0,0.00036164,14]
[377585571,1754448695726,-905.29,0.00036164,14]
[377585572,1754448695735,-400.0,0.00036164,14]
[377585573,1754448695744,-400.0,0.00036164,14]
[377585574,1754448695753,-400.0,0.00036164,14]
[377585575,1754448695763,-400.0,0.00036164,14]
[377585576,1754448695772,-833.81,0.00036164,14]
[377585577,1754448695782,-400.0,0.00036164,14]
[377585578,1754448695791,-400.0,0.00036164,14]
[377585579,1754448695800,-423.93,0.00036164,14]
[377585580,1754448695810,-400.0,0.00036164,14]
[377585581,1754448695820,-1620.39,0.00036164,14]
[377585582,1754448695829,-400.0,0.00036164,14]
[377585583,1754448695839,-1647.26,0.00036164,14]
[377585584,1754448695848,-400.0,0.00036164,14]
[377585585,1754448695860,-2673.63,0.00036164,14]
[377585586,1754448695869,-400.0,0.00036164,14]
[377585587,1754448695879,-400.0,0.00036164,14]
[377585588,1754448695888,-3032.43,0.00036164,14]
[377585589,1754448695898,-400.0,0.00036164,14]
[377585590,1754448695907,-299.26754922,0.00036164,14]
[377585591,1754448695918,-2718.79,0.00036164,14]
[377585592,1754448695927,-652.53,0.00036164,14]
[377585593,1754448696049,-591.66,0.00036164,14]
[377585594,1754448696059,-400.0,0.00036164,14]
[377585595,1754448696068,-400.0,0.00036164,14]
[377585596,1754448696077,-537.68,0.00036164,14]
[377585597,1754448696086,-400.0,0.00036164,14]
[377585598,1754448696096,-400.0,0.00036164,14]
[377585599,1754448696105,-400.0,0.00036164,14]
[377585600,1754448696115,-1352.85,0.00036164,14]
[377585601,1754448696125,-400.0,0.00036164,14]
[377585602,1754448696134,-1194.25,0.00036164,14]
[377585603,1754448696144,-1325.26,0.00036164,14]
[377585604,1754448696153,-687.17,0.00036164,14]
[377585605,1754448696162,-3219.58,0.00036164,14]
[377585606,1754448696171,-400.0,0.00036164,14]
[377585607,1754448696180,-400.0,0.00036164,14]
[377585608,1754448696189,-400.0,0.00036164,14]
[377585609,1754448696198,-2118.84,0.00036164,14]
[377585610,1754448696207,-2996.94,0.00036164,14]
[377585611,1754448696216,-1193.92,0.00036164,14]
[377585612,1754448696225,-400.0,0.00036164,14]
[377585613,1754448696234,-400.0,0.00036164,14]
[377585614,1754448696243,-1273.79,0.00036164,14]
[377585615,1754448696252,-400.0,0.00036164,14]
[377585616,1754448696261,-400.0,0.00036164,14]
[377585617,1754448696271,-400.0,0.00036164,14]
[377585618,1754448696281,-400.0,0.00036164,14]
[377585619,1754448696290,-400.0,0.00036164,14]
[377585620,1754448696299,-825.46,0.00036164,14]
[377585621,1754448696308,-400.0,0.00036164,14]
[377585622,1754448696317,-400.0,0.00036164,14]
[377585623,1754448696327,-509.96,0.00036164,14]
[377585624,1754448696335,-2113.04,0.00036164,14]
[377585625,1754448696345,-400.0,0.00036164,14]
[377585626,1754448696354,-2100.37,0.00036164,14]
[377585627,1754448696364,-400.0,0.00036164,14]
[377585628,1754448696373,-400.0,0.00036164,14]
[377585629,1754448696383,-400.0,0.00036164,14]
[377585630,1754448696391,-1931.44,0.00036164,14]
[377585631,1754448696400,-445.22,0.00036164,14]
[377585632,1754448696409,-400.0,0.00036164,14]
[377585633,1754448696418,-2053.25,0.00036164,14]
[377585634,1754448696427,-400.0,0.00036164,14]
[377585635,1754448696437,-1620.16,0.00036164,14]
[377585636,1754448696446,-400.0,0.00036164,14]
[377585637,1754448696455,-400.0,0.00036164,14]
[377585638,1754448696464,-590.55,0.00036164,14]
[377585639,1754448696473,-400.0,0.00036164,14]
[377585640,1754448696482,-400.0,0.00036164,14]
[377585641,1754448696491,-400.0,0.00036164,14]
[377585642,1754448696501,-400.0,0.00036164,14]
[377585643,1754448696511,-457.71,0.00036164,14]
[377585644,1754448696521,-2493.6,0.00036164,14]
[377585645,1754448696531,-2044.76,0.00036164,14]
[377585646,1754448696541,-400.0,0.00036164,14]
[377585647,1754448696551,-500.0,0.00036164,10]
[377585648,1754448696560,-400.0,0.00036164,14]
[377585649,1754448696570,-1325.52,0.00036164,14]
[377585650,1754448696579,-400.0,0.00036164,14]
[377585651,1754448696588,-3399.61,0.00036164,14]
[377585652,1754448696597,-400.0,0.00036164,14]
[377585653,1754448696606,-486.69,0.00036164,14]
[377585654,1754448696616,-400.0,0.00036164,14]
[377585655,1754448696625,-400.0,0.00036164,14]
[377585656,1754448696635,-1026.17,0.00036164,14]
[377585657,1754448696646,-400.0,0.00036164,14]
[377585658,1754448696655,-723.29,0.00036164,14]
[377585659,1754448696664,-651.88,0.00036164,14]
[377585660,1754448696674,-400.0,0.00036164,14]
[377585661,1754448696683,-400.0,0.00036164,14]
[377585662,1754448696692,-232.44037114,0.00036164,14]
[377585663,1754448696701,-903.69,0.00036164,14]
[377585664,1754448696710,-1532.92,0.00036164,14]
[377585665,1754448696719,-672.26,0.00036164,14]
[377585666,1754448696728,-400.0,0.00036164,14]
[377585667,1754448696738,-400.0,0.00036164,14]
[377585668,1754448696747,-400.0,0.00036164,14]
[377585669,1754448696756,-1382.08,0.00036164,14]
[377585670,1754448696765,-400.0,0.00036164,14]
[377585671,1754448696774,-400.60710576,0.00036164,14]
[377585672,1754448696784,-2614.37,0.00036164,14]
[377585673,1754448696800,-400.0,0.00036164,14]
[377585674,1754448696810,-1985.89,0.00036164,14]
[377585675,1754448696821,-1383.95,0.00036164,14]
[377585676,1754448696831,-400.0,0.00036164,14]
[377585677,1754448696840,-400.0,0.00036164,14]
[377585678,1754448696849,-677.89,0.00036164,14]
[377585679,1754448696859,-400.0,0.00036164,14]
[377585680,1754448696871,-400.0,0.00036164,14]
[377585681,1754448696881,-1028.28,0.00036164,14]
[377585682,1754448696890,-832.0,0.00036164,14]
[377585683,1754448696899,-400.0,0.00036164,14]
[377585684,1754448696910,-400.0,0.00036164,14]
[377585685,1754448696920,-400.0,0.00036164,14]
[377585686,1754448696929,-579.93,0.00036164,14]
[377585687,1754448696939,-400.0,0.00036164,14]
[377585688,1754448696949,-2180.85,0.00036164,14]
[377585689,1754448696959,-717.13,0.00036164,14]
[377585690,1754448696968,-400.0,0.00036164,14]
[377585691,1754448696978,-400.0,0.00036164,14]
[377585692,1754448696987,-400.0,0.00036164,14]
[377585693,1754448696997,-400.0,0.00036164,14]
[377585694,1754448697006,-2778.5,0.00036164,14]
[377585695,1754448697015,-400.0,0.00036164,14]
[377585696,1754448697024,-400.0,0.00036164,14]
[377585697,1754448697033,-2015.29,0.00036164,14]
[377585698,1754448697044,-496.08153309,0.00036164,14]
[377585699,1754448697053,-3708.79,0.00036164,14]
[377585700,1754448697062,-752.93,0.00036164,14]
[377585701,1754448697071,-164.597001,0.00036164,7]
[377585702,1754448697080,-400.0,0.00036164,14]
[377585703,1754448697090,-164.597001,0.00036164,7]
[377585704,1754448697099,-400.0,0.00036164,14]
[377585705,1754448697109,-400.0,0.00036164,14]
[377585706,1754448697119,-735.15,0.00036164,14]
[377585707,1754448697129,-2553.57,0.00036164,14]
[377585708,1754448697138,-400.0,0.00036164,14]
[377585709,1754448697155,-1607.76,0.00036164,14]
[377585710,1754448697165,-400.0,0.00036164,14]
[377585711,1754448697173,-400.0,0.00036164,14]
[377585712,1754448697182,-164.597001,0.00036164,7]
[377585713,1754448697191,-757.96,0.00036164,14]
[377585714,1754448697200,-1838.27,0.00036164,14]
[377585715,1754448697209,-2459.31,0.00036164,14]
[377585716,1754448697218,-164.597001,0.00036164,7]
[377585717,1754448697227,-400.0,0.00036164,2]
[377585718,1754448697236,-400.0,0.00036164,14]
[377585719,1754448697245,-2248.73,0.00036164,14]
[377585720,1754448697254,-865.96,0.00036164,14]
[377585721,1754448697263,-1094.22,0.00036164,14]
[377585722,1754448697272,-400.0,0.00036164,14]
[377585723,1754448697282,-842.75,0.00036164,14]
[377585724,1754448697291,-1141.46,0.00036164,14]
[377585725,1754448697300,-2023.14,0.00036164,14]
[377585726,1754448697309,-400.0,0.00036164,14]
[377585727,1754448697317,-1074.3,0.00036164,14]
[377585728,1754448697326,-1520.4,0.00036164,14]
[377585729,1754448697335,-414.57,0.00036164,14]
[377585730,1754448697344,-1903.84,0.00036164,14]
[377585731,1754448697353,-400.0,0.00036164,14]
[377585732,1754448697362,-400.0,0.00036164,14]
[377585733,1754448697371,-715.12,0.00036164,14]
[377585734,1754448697380,-400.0,0.00036164,14]
[377585735,1754448697390,-1769.99,0.00036164,14]
[377585736,1754448697398,-3013.96,0.00036164,14]
[377585737,1754448697407,-450.72,0.00036164,14]
[377585738,1754448697416,-1189.15,0.00036164,14]
[377585739,1754448697426,-400.0,0.00036164,14]
[377585740,1754448697435,-1853.29,0.00036164,14]
[377585741,1754448697444,-400.0,0.00036164,14]
[377585742,1754448697453,-2171.13,0.00036164,14]
[377585743,1754448697463,-492.36,0.00036164,14]
[377585744,1754448697472,-1432.94,0.00036164,14]
[377585745,1754448697481,-2772.54,0.00036164,14]
[377585746,1754448697491,-400.0,0.00036164,14]
[377585747,1754448697500,-660.15,0.00036164,14]
[377585748,1754448697510,-687.86,0.00036164,14]
[377585749,1754448697519,-2123.08,0.00036164,14]
[377585750,1754448697529,-1512.02,0.00036164,14]
[377585751,1754448697539,-1752.0,0.00036164,14]
[377585752,1754448697548,-400.0,0.00036164,14]
[377585753,1754448697556,-1827.77,0.00036164,14]
[377585754,1754448697565,-410.81974486,0.00036164,14]
[377585755,1754448697574,-400.0,0.00036164,14]
[377585756,1754448697583,-400.0,0.00036164,14]
[377585757,1754448697592,-1290.75,0.00036164,14]
[377585758,1754448697603,-400.0,0.00036164,14]
[377585759,1754448697612,-3809.64,0.00036164,14]
[377585760,1754448697622,-710.17,0.00036164,14]
[377585761,1754448697631,-400.0,0.00036164,14]
[377585762,1754448697640,-400.0,0.00036164,14]
[377585763,1754448697650,-541.8,0.00036164,14]
[377585764,1754448697658,-2320.18,0.00036164,14]
[377585765,1754448697667,-400.0,0.00036164,14]
[377585766,1754448697676,-400.0,0.00036164,14]
[377585767,1754448697685,-2988.22,0.00036164,14]
[377585768,1754448697695,-650.32,0.00036164,14]
[377585769,1754448697704,-432.19,0.00036164,14]
[377585770,1754448697713,-400.0,0.00036164,14]
[377585771,1754448697723,-374.35698726,0.00036164,14]
[377585772,1754448697732,-786.46,0.00036164,14]
[377585773,1754448697741,-2067.35,0.00036164,14]
[377585774,1754448697751,-2121.86,0.00036164,14]
[377585775,1754448697760,-1893.56,0.00036164,14]
[377585776,1754448697769,-1082.92,0.00036164,14]
[377585777,1754448697779,-400.0,0.00036164,14]
[377585778,1754448697789,-436.89,0.00036164,14]
[377585779,1754448697798,-400.0,0.00036164,14]
[377585780,1754448697807,-1091.29,0.00036164,14]
[377585781,1754448697817,-2572.93,0.00036164,14]
[377585782,1754448697826,-403.94,0.00036164,14]
[377585783,1754448697835,-400.0,0.00036164,14]
[377585784,1754448697844,-400.0,0.00036164,14]
[377585785,1754448697854,-456.45,0.00036164,14]
[377585786,1754448697867,-400.0,0.00036164,14]
[377585787,1754448697876,-1090.58,0.00036164,14]
[377585788,1754448697885,-2572.33,0.00036164,14]
[377585789,1754448697894,-1310.5,0.00036164,14]
[377585790,1754448697904,-1680.95,0.00036164,14]
[377585791,1754448697914,-569.78,0.00036164,14]
[377585792,1754448697922,-541.54,0.00036164,14]
[377585793,1754448697931,-615.57,0.00036164,14]
[377585794,1754448697941,-2393.94,0.00036164,14]
[377585795,1754448697951,-1272.84,0.00036164,14]
[377585796,1754448697960,-400.0,0.00036164,14]
[377585797,1754448697970,-1882.26,0.00036164,14]
[377585798,1754448697979,-400.0,0.00036164,14]
[377585799,1754448697988,-1821.93,0.00036164,14]
[377585800,1754448697998,-400.0,0.00036164,14]
[377585801,1754448698008,-400.0,0.00036164,14]
[377585802,1754448698017,-819.87,0.00036164,14]
[377585803,1754448698026,-400.0,0.00036164,14]
[377585804,1754448698035,-1723.53,0.00036164,14]
[377585805,1754448698044,-400.0,0.00036164,14]
[377585806,1754448698053,-400.0,0.00036164,14]
[377585807,1754448698062,-472.45,0.00036164,14]
[377585808,1754448698072,-2205.0,0.00036164,14]
[377585809,1754448698081,-400.0,0.00036164,14]
[377585810,1754448698090,-400.0,0.00036164,14]
[377585811,1754448698099,-400.0,0.00036164,14]
[377585812,1754448698109,-571.97,0.00036164,14]
[377585813,1754448698120,-400.0,0.00036164,14]